bitfinex/quotes_SOLUSD_20220130
["timestamp","ask_amount","ask_price","bid_price","bid_amount"]
[1643503500424,3.20669142,94.448,94.342,0.3]
[1643503500924,2.95669142,94.447,94.342,0.3]
[1643503501126,2.95669142,94.447,94.341,0.55]
[1643503501326,0.25,94.446,94.341,0.55]
[1643503501723,2.95669142,94.445,94.341,0.3]
[1643503501927,2.95669142,94.445,94.34,12.72]
[1643503502124,15.903,94.43,94.34,12.72]
[1643503502326,0.25,94.429,94.34,12.72]
[1643503502525,63.46,94.428,94.32,12.72]
[1643503502727,63.46,94.428,94.305,2.84472457]
[1643503502728,66.41669142,94.428,94.305,2.84472457]
[1643503502925,66.41669142,94.428,94.301,67.46066617]
[1643503502926,7.68960742,94.427,94.301,67.46066617]
[1643503503124,63.46,94.426,94.301,67.46066617]
[1643503503327,0.25,94.425,94.301,67.46066617]
[1643503503526,10.74917764,94.425,94.301,67.46066617]
[1643503503727,63.46,94.424,94.301,67.46066617]
[1643503503926,15.906,94.41,94.301,67.46066617]
[1643503504325,14.407185,94.409,94.301,23.9335]
[1643503504525,3.20669142,94.409,94.301,23.9335]
[1643503504725,2.95669142,94.408,94.28,12.72]
[1643503504924,6.47200118,94.408,94.28,12.72]
[1643503505126,0.25,94.407,94.274,45.4188]
[1643503505327,108.90669142,94.407,94.281,41.10162037]
[1643503505528,6.98386788,94.406,94.281,41.10162037]
[1643503505725,9.9405593,94.406,94.313,38.50130541]
[1643503505927,15.911,94.39,94.28,12.72]
[1643503506426,15.911,94.39,94.295,2.31018867]
[1643503506828,15.911,94.39,94.29,12.72]
[1643503507026,15.91,94.39,94.324,44.90137383]
[1643503507229,65.747,94.42,94.325,0.2]
[1643503507427,65.747,94.42,94.325,0.25]
[1643503507627,0.25,94.419,94.325,0.25]
[1643503508628,0.25,94.419,94.324,0.10728212]
[1643503508831,43.80161342,94.418,94.324,0.10728212]
[1643503509026,15.909,94.4,94.324,0.10728212]
[1643503509428,0.25,94.399,94.324,0.10728212]
[1643503509827,0.25,94.399,94.325,0.25]
[1643503510228,0.25,94.399,94.324,0.10728212]
[1643503512432,15.91,94.39,94.324,0.10728212]
[1643503512829,0.25,94.389,94.324,0.10728212]
[1643503516333,105.7,94.407,94.324,0.10728212]
[1643503516334,0.25,94.406,94.324,0.10728212]
[1643503516832,2.95669142,94.42,94.324,0.10728212]
[1643503517033,2.95669142,94.433,94.324,0.10728212]
[1643503517235,3.0,94.485,94.326,36.92544888]
[1643503517434,2.95669142,94.471,94.341,42.63448248]
[1643503517632,2.95669142,94.471,94.342,22.7028]
[1643503517834,2.95669142,94.471,94.343,0.2]
[1643503518035,2.95669142,94.471,94.352,6.0]
[1643503518233,2.95669142,94.471,94.36,12.72]
[1643503518434,15.6097,94.482,94.361,42.24374099]
[1643503518634,2.95669142,94.49,94.361,42.24374099]
[1643503518635,2.95669142,94.49,94.371,6.0]
[1643503518835,2.95669142,94.49,94.372,0.25]
[1643503519533,2.95669142,94.49,94.38,6.0]
[1643503519737,0.25,94.489,94.381,45.66765042]
[1643503519935,0.25,94.489,94.382,0.2]
[1643503520236,2.95669142,94.488,94.382,0.2]
[1643503520836,1.56747195,94.487,94.362,0.2]
[1643503521236,82.29073951,94.486,94.362,0.2]
[1643503521438,63.46,94.479,94.362,0.2]
[1643503521638,169.16,94.477,94.362,0.2]
[1643503521841,0.25,94.476,94.362,0.2]
[1643503522040,63.46,94.469,94.362,0.2]
[1643503522243,12.72,94.47,94.362,0.2]
[1643503522441,3.20669142,94.468,94.364,6.0]
[1643503522642,3.20669142,94.468,94.325,48.0143]
[1643503522643,3.20669142,94.468,94.335,6.0]
[1643503522842,2.95669142,94.467,94.33,0.2]
[1643503523045,15.9,94.45,94.326,0.2]
[1643503523243,12.72,94.44,94.324,0.10728212]
[1643503523444,24.9216,94.439,94.324,0.10728212]
[1643503523643,28.12829142,94.439,94.324,0.10728212]
[1643503523843,63.46,94.438,94.324,0.10728212]
[1643503524072,15.907,94.41,94.324,0.10728212]
[1643503524273,0.25,94.409,94.324,0.10728212]
[1643503524476,3.20669142,94.409,94.324,0.10728212]
[1643503524872,2.95669142,94.408,94.324,0.10728212]
[1643503525275,0.25,94.407,94.324,0.10728212]
[1643503525674,15.909,94.4,94.324,0.10728212]
[1643503525875,0.25,94.399,94.324,0.10728212]
[1643503526077,15.909,94.4,94.324,0.10728212]
[1643503527276,0.25,94.399,94.324,0.10728212]
[1643503527677,15.91,94.39,94.324,0.10728212]
[1643503527876,0.25,94.389,94.324,0.10728212]
[1643503531486,105.95,94.389,94.324,0.10728212]
[1643503531686,0.25,94.389,94.324,0.10728212]
[1643503531883,23.493,94.408,94.324,0.10728212]
[1643503532083,15.907,94.41,94.324,0.10728212]
[1643503532284,5.95669142,94.434,94.324,0.10728212]
[1643503532484,2.95669142,94.434,94.324,0.10728212]
[1643503532790,0.25,94.433,94.324,0.10728212]
[1643503532983,0.25,94.433,94.331,6.0]
[1643503533184,15.903,94.43,94.332,6.0]
[1643503533484,105.95,94.429,94.331,0.2]
[1643503535186,15.905,94.42,94.331,0.45]
[1643503535386,0.25,94.419,94.331,0.2]
[1643503535885,0.25,94.419,94.324,0.10728212]
[1643503536485,105.95,94.419,94.324,0.10728212]
[1643503537990,63.46,94.409,94.324,0.10728212]
[1643503538389,63.46,94.407,94.324,0.10728212]
[1643503538792,63.46,94.405,94.324,0.10728212]
[1643503539189,169.16,94.403,94.324,0.10728212]
[1643503539390,15.28,94.4,94.324,0.10728212]
[1643503539591,63.46,94.399,94.324,0.10728212]
[1643503539793,71.96044596,94.399,94.324,0.10728212]
[1643503539991,105.7,94.389,94.324,0.10728212]
[1643503540391,0.25,94.388,94.324,0.10728212]
[1643503540792,15.28,94.39,94.324,0.10728212]
[1643503541193,31.191,94.39,94.324,0.10728212]
[1643503543295,0.25,94.389,94.324,0.10728212]
[1643503543494,105.95,94.389,94.324,0.10728212]
[1643503543694,15.912,94.38,94.324,0.10728212]
[1643503543897,105.95,94.379,94.324,0.10728212]
[1643503545495,15.914,94.37,94.324,0.10728212]
[1643503545695,105.45,94.379,94.324,0.10728212]
[1643503545895,0.25,94.369,94.324,0.10728212]
[1643503546196,105.45,94.379,94.324,0.10728212]
[1643503546997,15.913,94.37,94.324,0.10728212]
[1643503547395,105.7,94.369,94.324,0.10728212]
[1643503547595,0.25,94.369,94.324,0.10728212]
[1643503548398,15.663,94.37,94.324,0.10728212]
[1643503549199,105.7,94.369,94.324,0.10728212]
[1643503549802,15.416,94.36,94.324,0.10728212]
[1643503550342,108.90669142,94.359,94.324,0.10728212]
[1643503550734,2.95669142,94.358,94.324,0.10728212]
[1643503551133,0.25,94.357,94.324,0.10728212]
[1643503551732,15.919,94.35,94.324,0.10728212]
[1643503552133,0.25,94.349,94.324,0.10728212]
[1643503552334,105.95,94.349,94.324,0.10728212]
[1643503552535,15.919,94.35,94.324,0.10728212]
[1643503552733,2.95669142,94.356,94.324,0.10728212]
[1643503552937,51.00747067,94.367,94.324,0.10728212]
[1643503552938,105.7,94.361,94.324,0.10728212]
[1643503553735,2.95669142,94.359,94.324,0.10728212]
[1643503554135,105.7,94.361,94.324,0.10728212]
[1643503554536,105.7,94.359,94.324,0.10728212]
[1643503554936,108.65669142,94.359,94.324,0.10728212]
[1643503555134,3.20669142,94.358,94.324,0.10728212]
[1643503555540,2.95669142,94.357,94.324,0.10728212]
[1643503555936,0.25,94.356,94.324,0.10728212]
[1643503556236,105.7,94.355,94.324,0.10728212]
[1643503556439,108.65669142,94.355,94.324,0.10728212]
[1643503556638,3.20669142,94.354,94.324,0.10728212]
[1643503556838,2.95669142,94.354,94.324,0.10728212]
[1643503557039,105.7,94.349,94.324,0.10728212]
[1643503557443,105.7,94.349,94.324,0.02207637]
[1643503558242,0.25,94.348,94.324,0.02207637]
[1643503560948,2.95669142,94.347,94.324,0.02207637]
[1643503561349,15.921,94.34,94.324,0.02207637]
[1643503561749,3.20669142,94.339,94.324,0.02207637]
[1643503562148,2.95669142,94.338,94.324,0.02207637]
[1643503562347,0.25,94.337,94.324,0.02207637]
[1643503562847,2.95669142,94.336,94.324,0.02207637]
[1643503563250,0.25,94.335,94.324,0.02207637]
[1643503563651,2.95669142,94.334,94.324,0.02207637]
[1643503563848,0.25,94.333,94.324,0.02207637]
[1643503564050,105.7,94.337,94.324,0.02207637]
[1643503565452,0.25,94.336,94.324,0.02207637]
[1643503567352,105.6049,94.337,94.324,0.02207637]
[1643503567552,2.95669142,94.335,94.324,0.02207637]
[1643503568153,2.95669142,94.346,94.324,0.02207637]
[1643503568355,15.918,94.36,94.324,0.02207637]
[1643503569556,0.25,94.354,94.324,0.02207637]
[1643503569959,15.28,94.4,94.324,0.02207637]
[1643503570157,48.5803,94.415,94.324,0.02207637]
[1643503570759,80.82870364,94.415,94.324,0.02207637]
[1643503571363,0.25,94.414,94.324,0.02207637]
[1643503571762,15.91,94.41,94.324,0.02207637]
[1643503572163,0.25,94.409,94.324,0.02207637]
[1643503572365,15.91,94.41,94.324,0.02207637]
[1643503573169,15.91,94.41,94.324,0.21456424]
[1643503573767,0.25,94.409,94.324,0.21456424]
[1643503575968,105.95,94.409,94.324,0.21456424]
[1643503576170,105.7,94.399,94.324,0.21456424]
[1643503576369,24.4876,94.398,94.324,0.21456424]
[1643503576583,27.44429142,94.398,94.324,0.21456424]
[1643503576782,108.65669142,94.397,94.324,0.21456424]
[1643503577182,3.20669142,94.396,94.324,0.21456424]
[1643503577584,2.95669142,94.395,94.324,0.21456424]
[1643503577784,0.25,94.394,94.324,0.21456424]
[1643503579386,2.70669142,94.395,94.324,0.21456424]
[1643503580385,105.7,94.389,94.324,0.21456424]
[1643503580787,2.95669142,94.388,94.324,0.21456424]
[1643503580986,105.7,94.389,94.324,0.21456424]
[1643503581286,3.20669142,94.388,94.324,0.21456424]
[1643503581986,15.914,94.38,94.324,0.21456424]
[1643503582187,105.7,94.379,94.324,0.21456424]
[1643503582386,105.95,94.379,94.324,0.21456424]
[1643503584388,2.95669142,94.378,94.324,0.21456424]
[1643503584887,0.25,94.377,94.324,0.21456424]
[1643503585287,2.95669142,94.376,94.324,0.21456424]
[1643503585690,0.25,94.375,94.324,0.21456424]
[1643503585989,2.95669142,94.374,94.324,0.21456424]
[1643503586390,0.25,94.373,94.324,0.21456424]
[1643503586792,2.95669142,94.372,94.324,0.21456424]
[1643503587190,0.25,94.371,94.324,0.21456424]
[1643503587594,15.915,94.37,94.324,0.21456424]
[1643503587895,63.46,94.368,94.324,0.21456424]
[1643503588092,63.46,94.364,94.324,0.21456424]
[1643503588293,0.25,94.363,94.324,0.21456424]
[1643503588494,63.46,94.362,94.324,0.21456424]
[1643503588692,63.46,94.358,94.324,0.21456424]
[1643503588893,15.921,94.35,94.324,0.21456424]
[1643503589096,105.7,94.349,94.324,0.21456424]
[1643503589293,105.95,94.349,94.324,0.21456424]
[1643503589493,108.90669142,94.349,94.324,0.21456424]
[1643503589692,2.95669142,94.348,94.324,0.21456424]
[1643503589892,0.25,94.347,94.324,0.21456424]
[1643503590093,105.95,94.347,94.324,0.21456424]
[1643503590293,15.921,94.34,94.324,0.21456424]
[1643503590492,105.7,94.339,94.324,0.21456424]
[1643503590696,108.90669142,94.339,94.324,0.21456424]
[1643503590896,2.95669142,94.338,94.324,0.21456424]
[1643503591296,0.25,94.337,94.324,0.21456424]
[1643503592095,2.95669142,94.336,94.324,0.21456424]
[1643503592295,0.25,94.335,94.324,0.21456424]
[1643503592697,2.95669142,94.334,94.324,0.21456424]
[1643503592895,0.25,94.333,94.324,0.21456424]
[1643503593295,2.95669142,94.332,94.324,0.21456424]
[1643503593696,0.25,94.331,94.324,0.21456424]
[1643503594898,0.25,94.339,94.324,0.21456424]
[1643503595099,29.333938,94.338,94.324,0.21456424]
[1643503595298,0.25,94.337,94.324,0.21456424]
[1643503595699,29.327664,94.336,94.324,0.21456424]
[1643503595898,0.25,94.335,94.324,0.21456424]
[1643503597100,0.25,94.339,94.324,0.21456424]
[1643503597302,15.178385,94.339,94.324,0.21456424]
[1643503597501,14.928385,94.338,94.324,0.21456424]
[1643503597700,29.100903,94.338,94.324,0.21456424]
[1643503597900,14.928385,94.338,94.324,0.21456424]
[1643503598102,14.928385,94.337,94.324,0.21456424]
[1643503598302,14.928385,94.336,94.324,0.21456424]
[1643503598503,14.928385,94.339,94.324,0.21456424]
[1643503598703,14.928385,94.338,94.324,0.21456424]
[1643503598904,14.928385,94.339,94.324,0.21456424]
[1643503600004,0.25,94.338,94.324,0.21456424]
[1643503600402,29.100903,94.337,94.324,0.21456424]
[1643503600604,63.46,94.336,94.324,0.21456424]
[1643503600806,63.46,94.334,94.275,9.687e-05]
[1643503601003,68.372,94.33,94.324,0.42912848]
[1643503601203,63.46,94.327,94.324,0.42912848]
[1643503601403,0.25,94.326,94.324,0.42912848]
[1643503601603,63.46,94.323,94.275,9.687e-05]
[1643503601804,63.46,94.319,94.275,9.687e-05]
[1643503602007,63.46,94.309,94.275,9.687e-05]
[1643503602207,63.46,94.309,94.24,0.9]
[1643503602208,63.46,94.299,94.24,0.40009687]
[1643503602405,63.46,94.297,94.189,1.47124984]
[1643503602707,63.46,94.295,94.181,0.11398075]
[1643503602906,0.31429054,94.275,94.181,0.11398075]
[1643503603105,31.215,94.27,94.181,0.11398075]
[1643503603306,105.95,94.269,94.181,0.11398075]
[1643503603709,34.17169142,94.27,94.181,0.11398075]
[1643503604006,15.934,94.27,94.181,0.11398075]
[1643503604206,2.95669142,94.269,94.181,0.11398075]
[1643503604406,12.28669142,94.269,94.181,33.36312546]
[1643503604607,2.95669142,94.269,94.182,0.11398075]
[1643503604811,2.95669142,94.269,94.182,0.36398075]
[1643503605007,0.25,94.268,94.182,0.11398075]
[1643503606109,2.95669142,94.267,94.181,0.11398075]
[1643503606310,0.25,94.266,94.181,0.11398075]
[1643503606711,2.95669142,94.265,94.181,0.11398075]
[1643503607110,0.25,94.264,94.181,0.11398075]
[1643503607314,0.25,94.264,94.181,0.36398075]
[1643503607512,0.25,94.264,94.181,0.11398075]
[1643503607711,15.935,94.26,94.181,0.11398075]
[1643503607912,94.714187,94.259,94.181,0.11398075]
[1643503608112,97.67087842,94.259,94.181,0.11398075]
[1643503608310,63.46,94.257,94.181,0.11398075]
[1643503608510,105.7,94.254,94.181,0.11398075]
[1643503608711,105.7,94.25,94.181,0.11398075]
[1643503608913,0.25,94.249,94.181,0.11398075]
[1643503609314,3.20669142,94.249,94.181,0.11398075]
[1643503609511,2.95669142,94.248,94.181,0.11398075]
[1643503609712,0.25,94.249,94.181,0.11398075]
[1643503610018,105.7,94.279,94.181,0.11398075]
[1643503610212,0.25,94.273,94.181,0.36398075]
[1643503610437,3.20669142,94.273,94.181,0.36398075]
[1643503610638,15.933,94.27,94.181,0.36398075]
[1643503610838,0.25,94.269,94.181,24.55528075]
[1643503611041,3.20669142,94.269,94.182,0.11398075]
[1643503611239,0.25,94.269,94.182,0.11398075]
[1643503611439,66.41669142,94.268,94.181,0.11398075]
[1643503611642,2.95669142,94.268,94.181,0.11398075]
[1643503611839,3.20669142,94.267,94.181,43.89547361]
[1643503612038,2.95669142,94.267,94.182,0.11398075]
[1643503612439,2.95669142,94.266,94.181,0.11398075]
[1643503612939,63.46,94.264,94.181,0.11398075]
[1643503613139,63.46,94.262,94.181,0.11398075]
[1643503613338,63.46,94.26,94.181,0.11398075]
[1643503613539,105.7,94.259,94.181,0.11398075]
[1643503613740,15.936,94.25,94.181,0.11398075]
[1643503614243,105.95,94.249,94.181,0.11398075]
[1643503614442,108.90669142,94.249,94.181,0.11398075]
[1643503614640,105.95,94.249,94.181,0.11398075]
[1643503614840,2.95669142,94.248,94.181,0.11398075]
[1643503615250,2.95669142,94.266,94.181,0.11398075]
[1643503615442,15.933,94.27,94.181,0.11398075]
[1643503615641,0.25,94.265,94.181,0.11398075]
[1643503616444,0.25,94.265,94.181,0.36398075]
[1643503616844,0.25,94.269,94.181,0.36398075]
[1643503617044,0.25,94.269,94.181,0.11398075]
[1643503617244,3.20669142,94.269,94.181,0.11398075]
[1643503617445,0.25,94.269,94.181,0.11398075]
[1643503617645,2.95669142,94.268,94.181,0.11398075]
[1643503617846,0.25,94.267,94.181,0.11398075]
[1643503618245,2.95669142,94.266,94.181,0.11398075]
[1643503618645,0.25,94.265,94.181,0.11398075]
[1643503619045,2.95669142,94.264,94.181,0.11398075]
[1643503619347,0.25,94.263,94.181,0.11398075]
[1643503619949,2.95669142,94.286,94.181,0.36398075]
[1643503620148,2.95669142,94.286,94.19,20.78]
[1643503620349,3.0,94.339,94.191,46.99168075]
[1643503620548,16.6960421,94.35,94.201,6.0]
[1643503620746,31.201,94.35,94.21,31.198]
[1643503620947,2.95669142,94.338,94.211,0.11398075]
[1643503621146,2.95669142,94.349,94.221,41.54458924]
[1643503621348,2.95669142,94.349,94.222,23.65018075]
[1643503621546,3.0,94.324,94.223,0.01398075]
[1643503621946,2.95669142,94.323,94.223,0.01398075]
[1643503622546,49.83079142,94.323,94.223,0.01398075]
[1643503622746,15.924,94.32,94.223,0.01398075]
[1643503623147,0.25,94.319,94.223,24.05788075]
[1643503623348,3.20669142,94.319,94.223,24.05788075]
[1643503623548,2.95669142,94.318,94.223,24.05788075]
[1643503623949,0.25,94.317,94.223,24.05788075]
[1643503624149,15.925,94.31,94.22,15.28]
[1643503624350,0.25,94.309,94.198,0.1]
[1643503624550,27.78919142,94.309,94.205,6.0]
[1643503624754,27.78919142,94.309,94.205,6.1]
[1643503625051,2.95669142,94.308,94.197,0.1]
[1643503625253,0.25,94.307,94.197,0.1]
[1643503625455,63.46,94.289,94.191,0.1]
[1643503625652,63.46,94.287,94.181,0.1]
[1643503625852,63.46,94.285,94.181,0.1]
[1643503626258,0.25,94.284,94.181,33.90111669]
[1643503626452,15.93,94.28,94.182,0.1]
[1643503626952,0.25,94.279,94.182,23.9465]
[1643503627152,3.20669142,94.279,94.183,0.1]
[1643503627552,2.95669142,94.278,94.183,0.1]
[1643503627954,0.25,94.277,94.183,0.1]
[1643503628351,2.95669142,94.276,94.183,0.3]
[1643503628852,0.25,94.275,94.183,0.3]
[1643503629252,15.932,94.27,94.183,0.3]
[1643503629653,3.20669142,94.269,94.183,0.3]
[1643503630053,2.95669142,94.268,94.183,0.3]
[1643503630457,0.25,94.267,94.183,0.3]
[1643503630853,2.95669142,94.266,94.183,0.3]
[1643503631054,15.933,94.26,94.183,39.26088847]
[1643503631256,0.25,94.259,94.184,0.3]
[1643503632460,15.931,94.28,94.184,0.3]
[1643503632658,2.95669142,94.281,94.188,1.47124984]
[1643503632857,1.4160421,94.303,94.197,1.47124984]
[1643503633059,2.95669142,94.326,94.211,1.47124984]
[1643503633060,1.4160421,94.325,94.211,1.47124984]
[1643503633257,1.4160421,94.325,94.213,33.39430079]
[1643503633458,1.4160421,94.325,94.214,0.3]
[1643503633658,1.4160421,94.329,94.223,6.0]
[1643503633859,0.25,94.328,94.224,0.25]
[1643503634059,0.25,94.328,94.215,1.47124984]
[1643503634262,0.25,94.33,94.216,0.25]
[1643503634661,0.25,94.335,94.216,0.25]
[1643503635059,3.20669142,94.335,94.216,0.25]
[1643503635260,2.95669142,94.335,94.214,0.55]
[1643503635460,1.4160421,94.337,94.217,2.31204596]
[1643503635664,2.95669142,94.345,94.23,15.28]
[1643503635861,1.4160421,94.36,94.236,1.47124984]
[1643503636061,1.4160421,94.36,94.246,6.0]
[1643503636261,1.4160421,94.368,94.25,15.28]
[1643503636461,1.4160421,94.379,94.255,1.47124984]
[1643503636661,1.4160421,94.388,94.265,6.0]
[1643503636863,1.4160421,94.421,94.281,105.7]
[1643503637061,17.13,94.47,94.281,105.7]
[1643503637062,1.4160421,94.431,94.291,6.0]
[1643503637262,2.95669142,94.43,94.3,15.28]
[1643503637462,1.4160421,94.437,94.301,35.67915202]
[1643503637662,1.4160421,94.443,94.32,15.899]
[1643503637864,1.4160421,94.451,94.33,15.28]
[1643503638064,1.4160421,94.451,94.331,111.9]
[1643503638265,1.4160421,94.456,94.34,6.0]
[1643503638463,2.95669142,94.477,94.35,15.28]
[1643503638464,1.4160421,94.46,94.35,15.28]
[1643503638670,1.4160421,94.462,94.36,15.28]
[1643503638865,2.95669142,94.455,94.361,40.02440213]
[1643503639062,2.95669142,94.455,94.362,0.2]
[1643503639263,17.62736796,94.454,94.343,0.2]
[1643503639564,16.21132586,94.454,94.352,6.0]
[1643503639763,1.4160421,94.46,94.352,6.0]
[1643503639964,16.21132586,94.473,94.353,35.7389561]
[1643503640165,2.95669142,94.453,94.36,6.0]
[1643503640364,2.95669142,94.453,94.354,0.2]
[1643503640365,2.95669142,94.453,94.363,6.0]
[1643503640771,17.22760364,94.452,94.351,0.2]
[1643503640966,15.901,94.45,94.33,15.28]
[1643503641166,15.901,94.45,94.331,0.2]
[1643503641366,17.25859037,94.449,94.331,0.2]
[1643503641565,20.21528179,94.449,94.331,38.27466985]
[1643503641766,19.96528179,94.448,94.332,0.2]
[1643503641967,17.00859037,94.448,94.332,0.2]
[1643503642166,2.95669142,94.463,94.341,6.0]
[1643503642366,2.95669142,94.447,94.341,6.0]
[1643503642566,2.95669142,94.447,94.341,6.2]
[1643503642767,17.00859037,94.446,94.341,6.2]
[1643503643270,15.902,94.44,94.341,6.0]
[1643503643667,3.20669142,94.439,94.341,6.0]
[1643503644166,2.95669142,94.438,94.341,6.0]
[1643503644367,0.25,94.437,94.341,6.0]
[1643503644767,2.95669142,94.436,94.341,6.0]
[1643503644968,15.905,94.42,94.341,6.0]
[1643503645377,3.20669142,94.419,94.341,6.0]
[1643503645772,2.95669142,94.418,94.341,6.0]
[1643503646171,15.907,94.41,94.332,0.2]
[1643503646371,0.25,94.409,94.322,0.2]
[1643503646570,3.20669142,94.409,94.281,6.0]
[1643503646770,2.95669142,94.408,94.281,6.0]
[1643503647069,2.95669142,94.408,94.282,40.84226362]
[1643503647270,15.911,94.39,94.283,47.6907]
[1643503647471,15.911,94.39,94.292,6.0]
[1643503647669,15.911,94.39,94.293,6.0]
[1643503647670,0.25,94.389,94.293,6.0]
[1643503647870,0.25,94.389,94.284,0.45]
[1643503648869,0.25,94.389,94.284,0.2]
[1643503649971,30.941,94.39,94.284,0.2]
[1643503650472,30.941,94.39,94.284,0.45]
[1643503651374,0.25,94.389,94.284,0.45]
[1643503653273,2.95669142,94.388,94.284,0.2]
[1643503653674,15.912,94.38,94.284,0.2]
[1643503653873,0.25,94.379,94.284,0.2]
[1643503654073,3.20669142,94.379,94.284,0.2]
[1643503654274,2.95669142,94.378,94.284,0.2]
[1643503654674,0.25,94.377,94.284,0.2]
[1643503655075,15.914,94.37,94.284,0.2]
[1643503655278,2.95669142,94.376,94.284,0.45]
[1643503655477,0.25,94.377,94.284,0.45]
[1643503655478,0.25,94.377,94.284,106.15]
[1643503655679,0.25,94.375,94.285,0.2]
[1643503655879,0.25,94.377,94.285,0.2]
[1643503655880,0.25,94.377,94.294,6.0]
[1643503656078,0.25,94.377,94.295,23.5113]
[1643503656276,0.25,94.377,94.296,0.2]
[1643503656677,0.25,94.377,94.296,0.45]
[1643503656876,0.25,94.407,94.296,0.45]
[1643503657277,2.95669142,94.406,94.296,0.45]
[1643503657677,0.25,94.405,94.296,0.45]
[1643503658080,15.91,94.39,94.296,0.2]
[1643503658278,0.25,94.389,94.296,0.2]
[1643503659703,2.95669142,94.388,94.296,0.2]
[1643503659903,0.25,94.387,94.296,0.45]
[1643503660103,0.25,94.387,94.296,0.2]
[1643503660304,15.912,94.38,94.296,0.2]
[1643503660705,0.25,94.379,94.296,0.45]
[1643503662107,0.25,94.379,94.296,0.2]
[1643503662714,15.914,94.37,94.291,0.2]
[1643503662915,0.25,94.369,94.284,0.2]
[1643503663109,0.25,94.369,94.25,15.28]
[1643503663110,3.20669142,94.369,94.283,0.2]
[1643503663310,0.25,94.369,94.283,0.2]
[1643503663510,2.95669142,94.368,94.283,0.2]
[1643503663915,15.917,94.35,94.283,0.2]
[1643503664310,0.25,94.349,94.283,0.2]
[1643503666911,2.95669142,94.368,94.283,0.2]
[1643503667112,15.914,94.37,94.283,0.45]
[1643503667313,0.25,94.367,94.283,0.45]
[1643503668411,0.25,94.369,94.283,0.45]
[1643503668816,2.95669142,94.367,94.283,0.2]
[1643503669015,0.25,94.369,94.283,0.2]
[1643503669215,0.25,94.366,94.283,0.2]
[1643503669514,0.25,94.369,94.283,0.2]
[1643503669916,0.25,94.369,94.283,22.8729]
[1643503670117,0.25,94.369,94.284,0.2]
[1643503670414,0.25,94.374,94.284,0.2]
[1643503671715,2.95669142,94.373,94.284,0.2]
[1643503671918,1.6660421,94.372,94.284,0.2]
[1643503672119,0.25,94.372,94.284,0.2]
[1643503672320,2.95669142,94.371,94.284,0.2]
[1643503672519,0.25,94.372,94.284,0.2]
[1643503672818,0.25,94.374,94.284,38.65125353]
[1643503673018,2.95669142,94.387,94.284,38.65125353]
[1643503673019,1.4160421,94.38,94.285,23.4029]
[1643503673220,1.4160421,94.38,94.286,0.2]
[1643503673419,1.4160421,94.388,94.295,6.0]
[1643503673619,1.4160421,94.388,94.301,46.71781338]
[1643503673818,1.4160421,94.393,94.302,0.45]
[1643503674021,1.4160421,94.394,94.311,6.0]
[1643503674220,1.4160421,94.4,94.312,23.3301]
[1643503674418,1.4160421,94.4,94.313,0.2]
[1643503674618,1.4160421,94.407,94.323,44.38097125]
[1643503674818,1.4160421,94.409,94.324,0.45]
[1643503675018,1.4160421,94.408,94.324,47.0312]
[1643503675221,1.4160421,94.408,94.325,0.2]
[1643503675623,1.4160421,94.409,94.325,0.2]
[1643503676221,1.4160421,94.412,94.325,0.2]
[1643503676422,1.4160421,94.409,94.325,0.2]
[1643503676626,1.4160421,94.41,94.325,0.2]
[1643503676822,1.4160421,94.414,94.325,0.2]
[1643503677121,1.4160421,94.415,94.325,0.2]
[1643503677321,0.25,94.414,94.325,0.2]
[1643503677725,0.25,94.414,94.325,0.45]